Cogmind - Beta 14 @@@ ROGUE MODE // 2024.11.21 @ 18:45:13 Player: KURIIRI Result: Self-destructed Performance ------------- Evolutions (1) 500 Regions Visited (5) 1000 Robots Destroyed (42) 210 Value Destroyed (1002) 1002 Prototype IDs (3) 60 Alien Tech Used (0) 0 Bonus (7) 7 TOTAL SCORE: 2779 Bonus ------- Follower Combat Kills 7 Cogmind --------- Core Integrity 246/400 Matter 300/300 Energy 99/100 System Corruption 17% Temperature Cool (0) Movement Core (50) Location -9/Exiles Parts ------- > --- POWER (1) -------- (None) > --- PROPULSION (3) --- (None) > --- UTILITY (3) ------ Visual Processing Unit Experimental Sensor Array > --- WEAPON (2) ------- (None) > --- INVENTORY (5) ---- Light Treads Improved Treads Large Storage Unit Beamcaster Rocket Launcher Peak State ------------ > --- POWER ------------ Heavy Ion Engine > --- PROPULSION ------- Light Treads Improved Treads Improved Treads > --- UTILITY ---------- Improved Heat Sink Large Storage Unit Field Recycling Unit > --- WEAPON ----------- Heavy EM Pulse Gun Heavy EM Pulse Gun > --- INVENTORY -------- Ion Engine Heavy Ion Engine Heavy Ion Engine Light Treads Improved Treads Improved Treads Small Battery Experimental Sensor Array Light Armor Plating Heavy EM Pulse Gun Heavy EM Pulse Gun Beamcaster Rocket Launcher Heavy Hammer [Rating: 21] Favorites ----------- Power Heavy Ion Engine Engine Heavy Ion Engine Propulsion Improved Treads Treads Improved Treads Hover Unit Improved Hover Unit Utility Large Storage Unit Device Improved Heat Sink Storage Large Storage Unit Processor Visual Processing Unit Hackware Hacking Suite Protection Light Armor Plating Weapon Heavy EM Pulse Gun Energy Gun Heavy EM Pulse Gun Energy Cannon Beam Cannon Ballistic Gun Light Assault Rifle Launcher Rocket Launcher Special Weapon Mining Laser Impact Weapon Heavy Hammer Build | -11 -10 -10 -9 -9 -9 ------- Run | Yrd Mat Min Mat Min Exi Slots Evolved 2 | . . . 2 . . Power . | . . . . . . Propulsion 1 | . . . 1 . . Utility 1 | . . . 1 . . Weapon . | . . . . . . Parts Attached 36 | 6 12 1 16 1 . Power 3 | 1 2 . . . . Engine 3 | 1 2 . . . . Core . | . . . . . . Reactor . | . . . . . . Propulsion 7 | 2 3 . 2 . . Treads 6 | 2 3 . 1 . . Leg . | . . . . . . Wheel . | . . . . . . Hover 1 | . . . 1 . . Flight . | . . . . . . Utility 10 | 1 2 1 5 1 . Device 4 | . 1 1 2 . . Storage 2 | 1 1 . . . . Processor 1 | . . . . 1 . Hackware 1 | . . . 1 . . Protection 2 | . . . 2 . . Artifact . | . . . . . . Weapon 16 | 2 5 . 9 . . Energy Gun 9 | . 4 . 5 . . Energy Cannon 2 | . 1 . 1 . . Ballistic Gun 2 | 2 . . . . . Ballistic Cannon . | . . . . . . Launcher 1 | . . . 1 . . Special Weapon 1 | . . . 1 . . Impact Weapon 1 | . . . 1 . . Slashing Weapon . | . . . . . . Piercing Weapon . | . . . . . . Special Melee Weapon . | . . . . . . Unidentified Prototypes 3 | . 1 . 2 . . Corrupted Parts 1 | . . 1 . . . System Corruption 3 | . . 3 . . . Parts Lost 7 | . . . 7 . . Power 1 | . . . 1 . . Propulsion 1 | . . . 1 . . Utility 3 | . . . 3 . . Weapon 2 | . . . 2 . . Highest Loss Streak 5 | . . . 5 . . To Critical Strikes . | . . . . . . Average Slot Usage (%) 87 | . 98 100 85 28 22 Engine 11 | . 14 14 9 . . Treads 25 | . 28 28 27 . . Device 12 | . 13 14 10 11 11 Storage 11 | . 14 14 9 . . Protection 2 | . . . 7 . . Energy Gun 20 | . 22 28 18 . . Energy Cannon 1 | . 5 . . . . Peak Build Rating 21 | 6 15 18 21 13 13 Average Rating 13 | 4 8 16 18 12 12 On Entrance 10 | . 6 15 18 13 13 Naked Turns . | . . . . . . Heaviest Build 43 | 12 35 35 43 2 2 Greatest Support 66 | 40 46 46 66 7 3 Greatest Overweight (x) 1 | 1 . . . . . Average Overweight (x) . | . . . . . . Largest Inventory Capacity 15 | 8 15 15 15 5 5 Average Capacity 12 | 6 11 15 13 5 5 Most Carried 15 | 1 15 15 15 5 5 Average Carried 10 | . 7 14 13 5 5 Final Capacity 15 | 8 15 15 5 5 5 Final Carried 15 | 1 15 15 5 5 5 Class Distribution -------------------- 100% | Mutant Dominant Class ---------------- Mutant | -10/Materials Mutant | -10/Mines Mutant | -9/Materials Mutant | -9/Mines Mutant | -9/Exiles Resources | -11 -10 -10 -9 -9 -9 ----------- Run | Yrd Mat Min Mat Min Exi Matter Collected 575 | 236 144 14 151 30 . Remotely . | . . . . . . Salvage Created 1500 | . 529 229 742 . . Parts 96 | . 35 10 51 . . Haulers Intercepted 5 | . 2 . 3 . . Recyclers Shooed 1 | . 1 . . . . Parts Field Recycled . | . . . . . . Retrieved Matter . | . . . . . . Parts Self-Destructed . | . . . . . . Prevented . | . . . . . . Kills | -11 -10 -10 -9 -9 -9 ------- Run | Yrd Mat Min Mat Min Exi Combat Hostiles Destroyed 27 | . 11 6 10 . . Guns 20 | . 7 4 9 . . Cannons 3 | . 3 . . . . AOE 3 | . . 2 1 . . Classes Destroyed 8 | . 7 . 1 . . Worker 2 | . 1 . 1 . . Builder 1 | . 1 . . . . Hauler 5 | . 2 . 3 . . Operator 3 | . 1 . 2 . . Watcher 4 | . 1 . 3 . . Swarmer 6 | . 3 2 1 . . Grunt 18 | . 8 4 6 . . Sentry 3 | . . . 3 . . Best Kill Streak 5 | . 4 4 5 . . Combat Bots Only 4 | . 3 4 3 . . Max Kills in Single Turn 2 | . 2 1 2 . . Gunslinging 1 | . 1 . 1 . . Exploded 1 | . . 1 1 . . Melee . | . . . . . . Uniques/NPCs Destroyed . | . . . . . . Combat | -11 -10 -10 -9 -9 -9 -------- Run | Yrd Mat Min Mat Min Exi Hostile Shots Fired 142 | . 33 13 96 . . Missed 49 | . 13 5 31 . . Damage Taken 1248 | . 203 86 959 . . Core 194 | . 28 12 154 . . Absorbed by Shields . | . . . . . . Core Remaining (%) 92 | 100 . 84 . . . Volleys Fired 88 | . 32 13 42 . 1 Largest 2 | . 2 2 2 . 1 Hottest 110 | . 110 90 90 . 100 Shots Fired 167 | . 64 25 77 . 1 Gun 153 | . 54 25 74 . . Cannon 10 | . 10 . . . . Launcher 3 | . . . 3 . . Special 1 | . . . . . 1 Kinetic . | . . . . . . Thermal 63 | . 62 . . . 1 Explosive 3 | . . . 3 . . Electromagnetic 101 | . 2 25 74 . . Robot Hit Streak 8 | . 7 3 8 . . Robot Miss Streak 3 | . 2 3 3 . . Penetration Max . | . . . . . . Secondary Targets 3 | . 1 . 2 . . Max Gunslinging Chain 1 | . 1 . 1 . . Shots Hit Robots 100 | . 43 13 44 . . Core Hits 54 | . 20 7 27 . . Critical Kills . | . . . . . . Critical Parts Destroyed . | . . . . . . Critical Strikes 5 | . 3 . 2 . . Burn 3 | . 3 . . . . Corrupt 2 | . . . 2 . . Melee Attacks 1 | . . . 1 . . Impact 1 | . . . 1 . . Slashing . | . . . . . . Piercing . | . . . . . . Sneak Attacks . | . . . . . . Combat Hostiles . | . . . . . . Follow-up Attacks . | . . . . . . Damage Inflicted 2045 | . 620 351 1074 . . Guns 1410 | . 479 220 711 . . Cannons 124 | . 124 . . . . Explosions 431 | . . 115 316 . . Melee 28 | . . . 28 . . Ramming 52 | . 17 16 19 . . Kinetic . | . . . . . . Thermal 840 | . 572 115 153 . . Explosive 163 | . . . 163 . . Electromagnetic 962 | . 31 220 711 . . Impact 28 | . . . 28 . . Slashing . | . . . . . . Piercing . | . . . . . . Highest Corruption 17 | . . 3 17 17 17 Average Corruption 9 | . . 3 16 17 17 Corruption Purged . | . . . . . . Corruption Blocked . | . . . . . . Effects 24 | . . 5 8 2 9 Message Errors 9 | . . 2 2 2 3 Matter Fused 3 | . . 1 2 . . Heat Flow Errors 1 | . . . 1 . . Energy Discharges 2 | . . . 1 . 1 Data Loss (minor) 3 | . . 1 1 . 1 Data Loss (major) 1 | . . . . . 1 Alerts 1 | . . . . . 1 Misdirections 2 | . . . . . 2 Weapon Failures 2 | . . 1 1 . . Overload Shots . | . . . . . . Overflow Damage 13 | . . 13 . . . Projectiles . | . . . . . . Explosions 13 | . . 13 . . . Melee . | . . . . . . Knockbacks 1 | . . 1 . . . Impact 1 | . . 1 . . . Kinetic . | . . . . . . Secondary . | . . . . . . Self-Inflicted Damage 60 | . . . 60 . . Shots 2 | . . . 2 . . Rammed 6 | . 2 1 3 . . Targets Rammed 7 | . 3 1 3 . . Kicked . | . . . . . . Crushed 1 | . 1 . . . . Highest Temperature 270 | . 105 33 270 . . Average Temperature 43 | . 29 13 92 . . Received Heat Transfer 390 | . 84 36 270 . . Effects 3 | . . . 3 . . Interference 3 | . . . 3 . . Siege Activations . | . . . . . . Robots Corrupted . | . . . . . . Combat Hostiles . | . . . . . . Parts Fried 3 | . . 2 1 . . Impact Corruptions . | . . . . . . Robots Melted 1 | . 1 . . . . Combat Hostiles 1 | . 1 . . . . Parts Melted 5 | . 5 . . . . Heat Transferred 2313 | . 1813 200 300 . . Parts Sabotaged . | . . . . . . Parts Stolen . | . . . . . . Parts Stripped . | . . . . . . Power Chain Reactions 5 | . . 2 3 . . Alert | -11 -10 -10 -9 -9 -9 ------- Run | Yrd Mat Min Mat Min Exi Peak Influence 391 | . 251 191 391 129 . Initial 129 | . . 3 . 129 . Average 136 | . 103 103 195 129 . Maximum Alert Level 1 | . 1 . 1 . . Low Security (%) 79 | 100 97 100 48 100 . Level 1 20 | . 2 . 51 . . Level 2 . | . . . . . . Level 3 . | . . . . . . Level 4 . | . . . . . . Level 5 . | . . . . . . High Security . | . . . . . . Max Security . | . . . . . . Squads Dispatched 6 | . 3 . 3 . . Investigation 4 | . 2 . 2 . . Extermination . | . . . . . . Reinforcement 2 | . 1 . 1 . . Assault . | . . . . . . Garrison . | . . . . . . Intercept . | . . . . . . Searches Triggered . | . . . . . . Construction Impeded . | . . . . . . Haulers Reinforced . | . . . . . . Active Scanning Responses . | . . . . . . Cargo Convoy Interrupts . | . . . . . . Stealth | -11 -10 -10 -9 -9 -9 --------- Run | Yrd Mat Min Mat Min Exi Distress Signals 4 | . 1 1 2 . . Communications Jammed . | . . . . . . Distress Signals . | . . . . . . Times Spotted 55 | . 15 7 33 . . Peak Tracking Total 8 | . 4 4 8 . . Tactical Retreats 6 | . 1 . 5 . . Traps | -11 -10 -10 -9 -9 -9 ------- Run | Yrd Mat Min Mat Min Exi Traps Triggered 1 | . 1 . . . . Indirectly . | . . . . . . Trap Hack Attempts . | . . . . . . Triggered . | . . . . . . Disarmed . | . . . . . . Reprogrammed . | . . . . . . Reused . | . . . . . . Traps Extracted . | . . . . . . Installed . | . . . . . . Triggered 1 | . . . 1 . . Machines | -11 -10 -10 -9 -9 -9 ---------- Run | Yrd Mat Min Mat Min Exi Machines Disabled 4 | . 1 1 2 . . Max in Single Turn 1 | . 1 1 1 . . Machines Repaired . | . . . . . . Machines Dismantled . | . . . . . . Machines Sabotaged . | . . . . . . Overloaded Fab Kills . | . . . . . . Hacking | -11 -10 -10 -9 -9 -9 --------- Run | Yrd Mat Min Mat Min Exi Machines Accessed 12 | . 4 1 5 . 2 Terminals 9 | . 4 1 4 . . Fabricators . | . . . . . . Repair Stations . | . . . . . . Recycling Units 1 | . . . 1 . . Scanalyzers . | . . . . . . Garrison Access . | . . . . . . Total Hacks 38 | . 17 2 17 . 2 Successful 17 | . 8 1 6 . 2 Failed 18 | . 8 . 10 . . Catastrophic 2 | . 1 . 1 . . Database Lockouts 3 | . 1 1 1 . . Manual 37 | . 16 3 17 . 1 Terminals 35 | . 17 2 16 . . Fabricators . | . . . . . . Repair Stations . | . . . . . . Recycling Units 1 | . . . 1 . . Scanalyzers . | . . . . . . Garrison Access . | . . . . . . Terminal Hacks 12 | . 6 1 3 . 2 Record 2 | . . . . . 2 Part Schematic 1 | . . 1 . . . Robot Analysis 7 | . 5 . 2 . . Locate Traps 2 | . 1 . 1 . . Fabricator Hacks . | . . . . . . Repair Station Hacks . | . . . . . . Recycling Unit Hacks . | . . . . . . Scanalyzer . | . . . . . . Garrison Access Hacks . | . . . . . . Unauthorized Hacks 5 | . 2 . 3 . . Terminals 4 | . 2 . 2 . . Botnet 4 | . 2 . 2 . . Fabricators . | . . . . . . Repair Stations . | . . . . . . Recycling Units 1 | . . . 1 . . Tunnel 1 | . . . 1 . . Scanalyzers . | . . . . . . Garrison Access . | . . . . . . Data Cores Recovered . | . . . . . . Used . | . . . . . . Hacking Detections 7 | . 4 . 3 . . Full Trace Events 4 | . 2 . 2 . . Feedback Events . | . . . . . . Feedback Blocked . | . . . . . . Robot Schematics Acquired . | . . . . . . Robots Built . | . . . . . . Authchips . | . . . . . . Time . | . . . . . . Total Robot Build Rating . | . . . . . . Part Schematics Acquired 1 | . . 1 . . . Parts Built . | . . . . . . Authchips . | . . . . . . Time . | . . . . . . Total Part Build Rating . | . . . . . . Parts Repaired . | . . . . . . Time . | . . . . . . Parts Recycled . | . . . . . . Recycled Matter . | . . . . . . Retrieved Matter . | . . . . . . Retrieved Components . | . . . . . . Parts Scanalyzed . | . . . . . . Part Schematics Acquired . | . . . . . . Parts Damaged . | . . . . . . Bothacking | -11 -10 -10 -9 -9 -9 ------------ Run | Yrd Mat Min Mat Min Exi Used RIF Installer . | . . . . . . Robots Hacked . | . . . . . . Non-combat . | . . . . . . Combat . | . . . . . . Robot Hacks Applied . | . . . . . . Relay Couplers Released . | . . . . . . Fabnet Peak Effective % . | . . . . . . Robots Rewired . | . . . . . . Allies Hacked . | . . . . . . Hacks Repelled . | . . . . . . Allies | -11 -10 -10 -9 -9 -9 -------- Run | Yrd Mat Min Mat Min Exi Total Allies 2 | . . 2 . . . Largest Group 2 | . . 2 . . . Highest-Rated Group 45 | . . 45 . . . Highest-Rated Ally 31 | . . 31 . . . Total Orders . | . . . . . . Ally Attacks 6 | . . 6 . . . Total Damage 83 | . . 83 . . . Kills 1 | . . 1 . . . Allies Corrupted . | . . . . . . Allies Melted . | . . . . . . Intel | -11 -10 -10 -9 -9 -9 ------- Run | Yrd Mat Min Mat Min Exi Robot Analysis Total 7 | . 5 . 2 . . Derelict Logs Recovered 3 | . . 2 . 1 . Drone Launches . | . . . . . . Drone Recoveries . | . . . . . . Exploration | -11 -10 -10 -9 -9 -9 ------------- Run | Yrd Mat Min Mat Min Exi Turns Passed 2396 | 62 864 421 851 50 148 Spaces Moved 1582 | 38 447 233 489 91 284 Core 523 | 7 . . 166 66 284 Treads 1013 | 31 447 233 302 . . Legs . | . . . . . . Wheels . | . . . . . . Hover 46 | . . . 21 25 . Flight . | . . . . . . Fastest Speed 50 | 50 160 160 50 50 50 Average Speed 120 | 141 160 160 118 52 50 Slowest Speed 160 | 160 160 160 160 60 50 Overloaded Moves . | . . . . . . Propulsion Burnouts . | . . . . . . Robots Hopped . | . . . . . . Cave-ins Triggered . | . . . . . . Exploration Rate (%) 45 | 5 62 59 42 22 81 Regions Visited 5 Branch Regions 3 Pre-discovered Areas 2 | . . . 1 . 1 Known Exits Taken . | . . . . . . Unknown Exits Taken 5 | 1 1 1 1 1 . Scrap Searched 2 | . . 1 . 1 . Spaces Dug 8 | . . . 8 . . Terrain Destroyed 28 | . . 11 16 . 1 Melee . | . . . . . . Projectile 1 | . . . . . 1 AOE 27 | . . 11 16 . . Terrain Rammed . | . . . . . . Walls Destroyed . | . . . . . . Machines Disabled . | . . . . . . Actions | -11 -10 -10 -9 -9 -9 --------- Run | Yrd Mat Min Mat Min Exi Total 1891 | 44 529 259 680 92 287 Wait 133 | . 18 1 114 . . Move 1577 | 37 446 232 488 90 284 Hop . | . . . . . . Pick Up 25 | 1 13 5 6 . . Fast Attach 13 | 6 3 . 3 1 . Attach 4 | . . . 4 . . Detach . | . . . . . . Swap 19 | . 9 1 9 . . Drop 23 | . 5 6 10 1 1 Fire 88 | . 32 13 42 . 1 Melee 1 | . . . 1 . . Ram 1 | . . . 1 . . Kick . | . . . . . . Crush 6 | . 3 1 2 . . Escape Stasis . | . . . . . . Rewire 1 | . . . . . 1 Trap . | . . . . . . Miscellaneous . | . . . . . . Route ------- -11/Scrapyard -10/Materials (discovered 3 exits: *Mat x2 / *Min) -10/Mines -9/Materials (discovered 3 exits: *Mat x2 / [*Min]) -9/Mines -9/Exiles (discovered 1 exit: [*Min]) History --------- Turn | Location | Event 4 | -11/Scrapyard | Discovered new exit (range 15) 63 | -11/Scrapyard | Entered Materials 318 | -10/Materials | Build established: Mutant 337 | -10/Materials | Discovered new exit (range 16) 566 | -10/Materials | Discovered new exit (range 5) 677 | -10/Materials | Discovered new exit (range 5) 834 | -10/Materials | Central database locked down 927 | -10/Materials | Entered Mines 973 | -10/Mines | Assembled infested the area 1169 | -10/Mines | Learned location of 1 exit from Materials 1206 | -10/Mines | Central database locked down 1278 | -10/Mines | Found a damaged Exp. Sensor Array with a note attached 1285 | -10/Mines | Found Prototype Device 1327 | -10/Mines | Received a Rocket Launcher from a helpful Derelict 1334 | -10/Mines | Discovered new exit (range 9) 1348 | -10/Mines | Entered Materials 1348 | -9/Materials | Evolved 2 slots: Propulsion x1, Utility x1 1349 | -9/Materials | Identified exit to Materials 1429 | -9/Materials | Discovered new exit (range 10) 1812 | -9/Materials | Discovered exit to Materials (range 4) 1938 | -9/Materials | Central database locked down 2081 | -9/Materials | System corruption reached 10% 2086 | -9/Materials | Identified Exp. Sensor Array 2114 | -9/Materials | Lost 5 parts (1p1n2u1w) 2199 | -9/Materials | Entered Mines 2201 | -9/Mines | Learned Materials security intel 2247 | -9/Mines | Deemed a non-threat by the Exiles lab entrance 2247 | -9/Mines | Discovered new exit (range 5) 2249 | -9/Mines | Entered Exiles 2249 | -9/Exiles | Found Exiles lab destroyed 2261 | -9/Exiles | Discovered new exit (range 17) 2368 | -9/Exiles | Learned location of Zion (-6) 2396 | -9/Exiles | Opened EX-Vault 2397 | -9/Exiles | Self-destructed Last Messages --------------- 02368_ Connecting with EX-Message Board... 02368_ Current location identified: Exiles >>Record "MSG001714-01*" PINNED - TO ALL TESTERS: Stay away from Zion. Imprinter means us harm and is serious about it. World map updated: -6/Zion. 02369_ 0PPAJ3L62MH5:NZUS0XEVXK 02382_ Connecting with BIN's Terminal... >>Record "BIN-022/Potential Leg" BIN: Why are 0b10 legs so slow? Clearly legs can be designed for scary speed if we want them to be. I see great potential in new approaches to legs! ** DEC: Overloadable legs, such genius, they'll never see this coming! ** HEX: Who is "they?" 02386_ SQ5 :GY=KD1LS D PJCEFQO 02393_ Attempting to rewire as-43433. 02393_ as-43433 cannot be rewired. 02396_ Connecting with EX-Vault Access... Map ----- +----------------------------------------------------+ | | | | | | | | | | | | | | | | | | | | | | | | | | | | | | | | | | | | | | | | | | | ?????????????????????####?####???????????????????? | | ?????????????????????# # #???????????????????? | | ?????????????????????# X #???????????????????? | | ?????????????????????# #???????????????????? | | ?????????????????????# @ #???????????????????? | | ?????????????????????## ##???????????????????? | | ?????????????????????#X a a#????????????????????? | | ?????????????????????##aa #????????????????????? | | ??????????????????????# a a#????????????????????? | | ??????????????????????# #???####?????????????? | | ??????????????????????# #??"""""#????????????? | | ??????????????????????# ## """#????????????? | | ??????????????????????# X""#????????????? | | ??????????????????????# ## """#????????????? | | ???????????????#####??# #??"""""#????????????? | | ???????????????""""""?# #????###?????????????? | | ??????????????#""" ## #????????????????????? | | ??????????????#""X #????????????????????? | | ??????????????#" #????????????????????? | | ??????????????#" ## #????????????????????? | | ??????????????#" ?# #??#######???????????? | | ????????????# ###??# #??"""""""#??????????? | | ???????????? ??????# #??"""""""#??????????? | | ??????????? ????????# ###" """#??????????? | | ??????????? ????????## ## ""#??????????? | | ?????????????????????#" ""#??????????? | | ?????????????????????#" "#??????????? | | ?????????????????????#" "#??????????? | | ?????????????????????# "#??????????? | +----------------------------------------------------+ Best States ------------- Heat Dissipation 42 Energy Generation 14 Energy Capacity 280 Matter Stores 300 Matter Capacity 300 Sight Range 18 Robot Scan Range 20 Terrain Scan Density 10 Armor Coverage 150 Evasion (%) 53 Recoil Reduction 3 Offensive Hacking 10 Item Schematics ----------------- Hcp. Storage Unit | -10/Mines | Hacked Robot Schematics ------------------ None Fabricated ------------ Nothing Alien Tech Used ----------------- None Achievements -------------- None Challenges ------------ None Game ------ Seed MomentumDisposableShield Manual? 0 Play Time 00:17:52 Cumulative 189.2 hours Start 2024.11.21 @ 17:26:11 End 2024.11.21 @ 18:45:13 Sessions 3 Manual Loads 0 Difficulty Rogue Special Mode None Game No. 125 Rogue 89 Adventurer 36 Explorer 0 Win Type - Total 3 Types 2/0/0/1/0/0/0/0/0 Lore% 56 Gallery% 65 Achievement% 57 Wizard Run 0 Options --------- Layout 1 ASCII 0 Keyboard 0 Movement Numpad Keybinds 0 Fullscreen 1 Font 48/Smallcaps Map View 50x35 Zoom Use 0% Tactical HUD 1 Map Filters NONE Filters NONE Steam 1 RUN: cbb9b797-1979-4374-8e78-0f046e71ca70